fUST/lending_fUST_20241114
["ID","MTS","AMOUNT","RATE_DAILY","PERIOD"]
[342217816,1731594646114,-500.0,0.00016438,2]
[342217817,1731594646123,-500.0,0.00016438,2]
[342217818,1731594646133,-500.0,0.00016438,2]
[342217819,1731594646142,-619.55,0.00016438,2]
[342217820,1731594646151,-500.0,0.00016438,2]
[342217821,1731594646160,-500.0,0.00016438,2]
[342217822,1731594646169,-500.0,0.00016438,2]
[342217823,1731594646179,-500.0,0.00016438,2]
[342217824,1731594646188,-523.30400976,0.00016438,2]
[342217825,1731594646198,-500.0,0.00016438,2]
[342217826,1731594646207,-633.86,0.00016438,2]
[342217827,1731594646217,-151.0,0.00016438,2]
[342217828,1731594646226,-151.0,0.00016438,2]
[342217829,1731594646235,-151.0,0.00016438,2]
[342217830,1731594646245,-151.0,0.00016438,2]
[342217831,1731594646255,-151.0,0.00016438,2]
[342217832,1731594646264,-151.0,0.00016438,2]
[342217833,1731594646274,-151.0,0.00016438,2]
[342217834,1731594646284,-500.0,0.00016438,2]
[342217835,1731594646294,-151.0,0.00016438,2]
[342217836,1731594646304,-151.0,0.00016438,2]
[342217837,1731594646313,-151.0,0.00016438,2]
[342217838,1731594646323,-151.0,0.00016438,2]
[342217839,1731594646336,-875.66,0.00016438,2]
[342217840,1731594646346,-151.0,0.00016438,2]
[342217841,1731594646356,-151.0,0.00016438,2]
[342217842,1731594646366,-151.0,0.00016438,2]
[342217843,1731594646376,-151.0,0.00016438,2]
[342217844,1731594646385,-151.0,0.00016438,2]
[342217845,1731594646394,-151.0,0.00016438,2]
[342217846,1731594646404,-181.177712,0.00016438,2]
[342217847,1731594646413,-151.0,0.00016438,2]
[342217848,1731594646423,-151.0,0.00016438,2]
[342217849,1731594646432,-500.0,0.00016438,2]
[342217850,1731594646441,-500.0,0.00016438,2]
[342217851,1731594646451,-500.0,0.00016438,2]
[342217852,1731594646460,-500.0,0.00016438,2]
[342217853,1731594646470,-627.85,0.00016438,2]
[342217854,1731594646479,-844.42,0.00016438,2]
[342217855,1731594646488,-500.0,0.00016438,2]
[342217856,1731594646498,-151.0,0.00016438,2]
[342217857,1731594646507,-500.0,0.00016438,2]
[342217858,1731594646516,-151.967015,0.00016438,2]
[342217859,1731594646526,-273.0959999,0.00016438,2]
[342217860,1731594646535,-508.09109653,0.00016438,2]
[342217861,1731594646545,-548.62,0.00016438,2]
[342217862,1731594646554,-500.0,0.00016438,2]
[342217863,1731594646563,-500.0,0.00016438,2]
[342217864,1731594646573,-500.0,0.00016438,2]
[342217865,1731594646585,-500.0,0.00016438,2]
[342217866,1731594646594,-945.15,0.00016438,2]
[342217867,1731594646604,-500.0,0.00016438,2]
[342217868,1731594646613,-151.0,0.00016438,2]
[342217869,1731594646622,-151.0,0.00016438,2]
[342217870,1731594646632,-156.997698,0.00016438,2]
[342217871,1731594646641,-500.0,0.00016438,2]
[342217872,1731594646654,-500.0,0.00016438,2]
[342217873,1731594646814,-500.0,0.00016438,2]
[342217874,1731594646824,-523.29,0.00016438,2]
[342217875,1731594646836,-417.0760737,0.00016438,2]
[342217876,1731594646845,-500.0,0.00016438,2]
[342217877,1731594646854,-500.0,0.00016438,2]
[342217878,1731594646864,-151.0,0.00016438,2]
[342217879,1731594646873,-151.0,0.00016438,2]
[342217880,1731594646883,-283.083454,0.00016438,2]
[342217881,1731594646892,-500.0,0.00016438,2]
[342217882,1731594646902,-500.0,0.00016438,2]
[342217883,1731594646911,-500.0,0.00016438,2]
[342217884,1731594646920,-315.98841706,0.00016438,2]
[342217885,1731594646930,-500.0,0.00016438,2]
[342217886,1731594646939,-500.0,0.00016438,2]
[342217887,1731594646948,-565.31,0.00016438,2]
[342217888,1731594646957,-500.0,0.00016438,2]
[342217889,1731594646967,-674.13,0.00016438,2]
[342217890,1731594646976,-500.0,0.00016438,2]
[342217891,1731594646985,-879.68,0.00016438,2]
[342217892,1731594646994,-500.0,0.00016438,2]
[342217893,1731594647003,-500.0,0.00016438,2]
[342217894,1731594647012,-500.0,0.00016438,2]
[342217896,1731594647021,-500.0,0.00016438,2]
[342217898,1731594647031,-500.0,0.00016438,2]
[342217899,1731594647040,-500.0,0.00016438,2]
[342217900,1731594647050,-556.59,0.00016438,2]
[342217901,1731594647059,-500.0,0.00016438,2]
[342217902,1731594647068,-500.0,0.00016438,2]
[342217903,1731594647077,-519.82,0.00016438,2]
[342217905,1731594647088,-500.0,0.00016438,2]
[342217906,1731594647097,-606.98,0.00016438,2]
[342217908,1731594647107,-500.0,0.00016438,2]
[342217910,1731594647116,-500.0,0.00016438,2]
[342217912,1731594647125,-151.0,0.00016438,2]
[342217913,1731594647135,-66.76518947,0.00016438,2]
[342217914,1731594647153,-84.23481053,0.00016438,2]
[342217915,1731594647163,-151.0,0.00016438,2]
[342217916,1731594647174,-151.0,0.00016438,2]
[342217917,1731594647183,-500.0,0.00016438,2]
[342217918,1731594647193,-500.0,0.00016438,2]
[342217919,1731594647202,-2102.92,0.00016438,2]
[342217920,1731594647212,-747.86,0.00016438,2]
[342217921,1731594647221,-505.32,0.00016438,2]
[342217922,1731594647230,-779.45,0.00016438,2]
[342217923,1731594647240,-407.09518949,0.00016438,2]
[342217924,1731594647251,-92.90481051,0.00016438,2]
[342217925,1731594647260,-500.0,0.00016438,2]
[342217926,1731594647270,-95.923544,0.00016438,2]
[342217991,1731595834703,-400.0,0.00013973,2]
[342217992,1731595834712,-285.85736658,0.00014109,2]
[342217993,1731595834724,-357.36596734,0.00014109,2]
[342217994,1731595834736,-448.51,0.00014109,2]
[342217995,1731595834748,-5731.60098478,0.00014109,2]
[342217996,1731595834757,-213.761669,0.00014139,2]
[342217997,1731595834766,-191.0991544,0.00014172,2]
[342217998,1731595834775,-310.4879489,0.00014959,2]
[342217999,1731595834785,-300.0,0.00015004,2]
[342218000,1731595834794,-300.0,0.00015004,2]
[342218001,1731595834803,-24900.0,0.00015005,2]
[342218002,1731595834812,-857.1380868,0.00015038,2]
[342218003,1731595834825,-384.2306696,0.00015236,2]
[342218004,1731595834834,-262.51664359,0.00015534,2]
[342218005,1731595834845,-1973.65602181,0.00015534,2]
[342218006,1731595834854,-341.21578215,0.00016,2]
[342218007,1731595834863,-8618.1791657,0.00016218,2]
[342218008,1731595834872,-874.81525578,0.00016218,2]
[342218009,1731595834881,-1743.50334169,0.00016338,2]
[342218010,1731595834890,-303.9936668,0.000164,2]
[342218011,1731595834899,-420.0,0.00016421,2]
[342218012,1731595834907,-198.669916,0.00016433,2]
[342218013,1731595834917,-198.669916,0.00016433,2]
[342218014,1731595834926,-198.669916,0.00016433,2]
[342218015,1731595834935,-198.669916,0.00016433,2]
[342218016,1731595834944,-198.669916,0.00016433,2]
[342218017,1731595834953,-198.669916,0.00016433,2]
[342218018,1731595834962,-198.669916,0.00016435,2]
[342218019,1731595834971,-198.669916,0.00016435,2]
[342218020,1731595834980,-258.68424248,0.00016437,2]
[342218021,1731595834989,-359.03189012,0.00016437,2]
[342218022,1731595834998,-500.0,0.00016437,2]
[342218023,1731595835011,-500.0,0.00016437,2]
[342218024,1731595835020,-500.0,0.00016437,2]
[342218025,1731595835029,-500.0,0.00016437,2]
[342218026,1731595835038,-500.0,0.00016437,2]
[342218027,1731595835047,-500.0,0.00016437,2]
[342218028,1731595835058,-500.0,0.00016437,2]
[342218029,1731595835067,-442.93772682,0.00016437,2]
[342218030,1731595835081,-500.0,0.00016437,2]
[342218031,1731595835091,-500.0,0.00016437,2]
[342218032,1731595835100,-500.0,0.00016437,2]
[342218033,1731595835109,-500.0,0.00016437,2]
[342218034,1731595835118,-500.0,0.00016437,2]
[342218035,1731595835127,-500.0,0.00016437,2]
[342218036,1731595835135,-500.0,0.00016437,2]
[342218037,1731595835144,-500.0,0.00016437,2]
[342218038,1731595835153,-500.0,0.00016437,2]
[342218039,1731595835163,-500.0,0.00016437,2]
[342218040,1731595835173,-500.0,0.00016437,2]
[342218041,1731595835186,-500.0,0.00016437,2]
[342218042,1731595835199,-500.0,0.00016437,2]
[342218043,1731595835212,-500.0,0.00016437,2]
[342218044,1731595835225,-500.0,0.00016437,2]
[342218045,1731595835236,-500.0,0.00016437,2]
[342218046,1731595835247,-500.0,0.00016437,2]
[342218047,1731595835259,-500.0,0.00016437,2]
[342218048,1731595835271,-500.0,0.00016437,2]
[342218049,1731595835283,-500.0,0.00016437,2]
[342218050,1731595835294,-500.0,0.00016437,2]
[342218051,1731595835305,-500.0,0.00016437,2]
[342218052,1731595835318,-500.0,0.00016437,2]
[342218053,1731595835333,-500.0,0.00016437,2]
[342218054,1731595835346,-500.0,0.00016437,2]
[342218055,1731595835358,-500.0,0.00016437,2]
[342218056,1731595835370,-500.0,0.00016437,2]
[342218057,1731595835382,-500.0,0.00016437,2]
[342218058,1731595835393,-500.0,0.00016437,2]
[342218059,1731595835404,-500.0,0.00016437,2]
[342218060,1731595835416,-500.0,0.00016437,2]
[342218061,1731595835427,-500.0,0.00016437,2]
[342218062,1731595835440,-500.0,0.00016437,2]
[342218063,1731595835452,-500.0,0.00016437,2]
[342218064,1731595835463,-500.0,0.00016437,2]
[342218065,1731595835474,-500.0,0.00016437,2]
[342218066,1731595835484,-500.0,0.00016437,2]
[342218067,1731595835494,-482.53127332,0.00016437,2]
[342218068,1731595835506,-500.0,0.00016437,2]
[342218069,1731595835515,-500.0,0.00016437,2]
[342218070,1731595835528,-500.0,0.00016437,2]
[342218071,1731595835539,-500.0,0.00016437,2]
[342218072,1731595835551,-500.0,0.00016437,2]
[342218073,1731595835564,-500.0,0.00016437,2]
[342218074,1731595835580,-500.0,0.00016437,2]
[342218075,1731595835591,-500.0,0.00016437,2]
[342218076,1731595835603,-500.0,0.00016437,2]
[342218077,1731595835615,-500.0,0.00016437,2]
[342218078,1731595835627,-500.0,0.00016437,2]
[342218079,1731595835638,-500.0,0.00016437,2]
[342218081,1731595835648,-300.0,0.00016437,2]
[342218083,1731595835658,-500.0,0.00016437,2]
[342218085,1731595835669,-518.23898089,0.00016437,2]
[342218087,1731595835680,-151.0,0.00016438,2]
[342218089,1731595835692,-151.0,0.00016438,2]
[342218092,1731595835706,-151.0,0.00016438,2]
[342218094,1731595835718,-218.96563,0.00016438,2]
[342218096,1731595835730,-500.0,0.00016438,2]
[342218097,1731595835739,-373.40812143,0.00016438,2]
[342218099,1731595835751,-218.01239622,0.00016438,2]
[342218101,1731595835762,-521.97492874,0.00016438,2]
[342218103,1731595835773,-502.69758726,0.00016438,2]
[342218105,1731595835785,-500.0,0.00016438,2]
[342218107,1731595835797,-539.68885244,0.00016438,2]
[342218109,1731595835808,-500.0,0.00016438,2]
[342218111,1731595835819,-603.3899854,0.00016438,2]
[342218113,1731595835833,-151.0,0.00016438,2]
[342218115,1731595835842,-151.0,0.00016438,2]
[342218117,1731595835852,-151.0,0.00016438,2]
[342218119,1731595835863,-151.0,0.00016438,2]
[342218121,1731595835874,-153.459821,0.00016438,2]
[342218123,1731595835885,-247.997745,0.00016438,2]
[342218125,1731595835896,-500.0,0.00016438,2]
[342218127,1731595835908,-550.40847107,0.00016438,2]
[342218129,1731595835919,-500.0,0.00016438,2]
[342218131,1731595835929,-500.0,0.00016438,2]
[342218133,1731595835941,-506.81905352,0.00016438,2]
[342218135,1731595835953,-788.3,0.00016438,2]
[342218137,1731595835964,-500.0,0.00016438,2]
[342218139,1731595835975,-202.47377652,0.00016438,2]
[342218141,1731595835986,-500.0,0.00016438,2]
[342218143,1731595835997,-500.0,0.00016438,2]
[342218144,1731595836008,-198.669916,0.00016438,2]
[342218146,1731595836019,-198.669916,0.00016438,2]
[342218148,1731595836030,-198.669916,0.00016438,2]
[342218150,1731595836042,-198.669916,0.00016438,2]
[342218151,1731595836053,-198.669916,0.00016438,2]
[342218153,1731595836064,-198.669916,0.00016438,2]
[342218155,1731595836080,-198.669916,0.00016438,2]
[342218156,1731595836090,-198.669916,0.00016438,2]
[342218157,1731595836101,-198.669916,0.00016438,2]
[342218159,1731595836113,-198.669916,0.00016438,2]
[342218161,1731595836124,-500.0,0.00016438,2]
[342218163,1731595836134,-198.669916,0.00016438,2]
[342218164,1731595836144,-198.669908,0.00016438,2]
[342218166,1731595836155,-500.0,0.00016438,2]
[342218168,1731595836165,-151.0,0.00016438,2]
[342218169,1731595836176,-500.0,0.00016438,2]
[342218171,1731595836187,-151.0,0.00016438,2]
[342218173,1731595836198,-151.0,0.00016438,2]
[342218175,1731595836208,-151.0,0.00016438,2]
[342218176,1731595836220,-151.0,0.00016438,2]
[342218177,1731595836231,-151.0,0.00016438,2]
[342218178,1731595836242,-151.0,0.00016438,2]
[342218179,1731595836252,-809.23,0.00016438,2]
[342218180,1731595836263,-500.0,0.00016438,2]
[342218181,1731595836274,-500.0,0.00016438,2]
[342218182,1731595836286,-500.0,0.00016438,2]
[342218183,1731595836297,-313.65462307,0.00016438,2]
[342218184,1731595836308,-525.76,0.00016438,2]
[342218185,1731595836320,-521.31158656,0.00016438,2]
[342218186,1731595836334,-151.0,0.00016438,2]
[342218187,1731595836344,-151.0,0.00016438,2]
[342218188,1731595836355,-151.0,0.00016438,2]
[342218189,1731595836366,-151.0,0.00016438,2]
[342218190,1731595836377,-151.0,0.00016438,2]
[342218191,1731595836388,-151.0,0.00016438,2]
[342218192,1731595836399,-151.0,0.00016438,2]
[342218193,1731595836410,-152.349148,0.00016438,2]
[342218194,1731595836423,-500.0,0.00016438,2]
[342218195,1731595836434,-581.69,0.00016438,2]
[342218196,1731595836445,-500.0,0.00016438,2]
[342218197,1731595836456,-500.0,0.00016438,2]
[342218198,1731595836467,-500.0,0.00016438,2]
[342218199,1731595836478,-500.0,0.00016438,2]
[342218200,1731595836489,-513.7504304,0.00016438,2]
[342218201,1731595836499,-500.0,0.00016438,2]
[342218202,1731595836511,-500.0,0.00016438,2]
[342218203,1731595836521,-500.0,0.00016438,2]
[342218204,1731595836533,-151.0,0.00016438,2]
[342218205,1731595836544,-151.0,0.00016438,2]
[342218206,1731595836555,-151.0,0.00016438,2]
[342218207,1731595836566,-196.540752,0.00016438,2]
[342218208,1731595836581,-500.0,0.00016438,2]
[342218209,1731595836592,-501.18864326,0.00016438,2]
[342218210,1731595836602,-523.3,0.00016438,2]
[342218211,1731595836613,-500.0,0.00016438,2]
[342218212,1731595836624,-500.0,0.00016438,2]
[342218213,1731595836635,-500.0,0.00016438,2]
[342218214,1731595836648,-322.47279951,0.00016438,2]
[342218215,1731595836658,-500.0,0.00016438,2]
[342218216,1731595836670,-500.0,0.00016438,2]
[342218217,1731595836681,-560.68151796,0.00016438,2]
[342218218,1731595836691,-500.0,0.00016438,2]
[342218219,1731595836702,-500.0,0.00016438,2]
[342218220,1731595836714,-1000.0,0.00016438,2]
[342218221,1731595836725,-516.60297466,0.00016438,2]
[342218222,1731595836736,-500.0,0.00016438,2]
[342218223,1731595836747,-500.0,0.00016438,2]
[342218224,1731595836759,-500.0,0.00016438,2]
[342218225,1731595836770,-500.0,0.00016438,2]
[342218226,1731595836781,-500.0,0.00016438,2]
[342218227,1731595836792,-500.0,0.00016438,2]
[342218228,1731595836803,-839.17,0.00016438,2]
[342218229,1731595836814,-968.41,0.00016438,2]
[342218230,1731595836829,-500.0,0.00016438,2]
[342218231,1731595836840,-500.0,0.00016438,2]
[342218232,1731595836851,-614.57,0.00016438,2]
[342218233,1731595836863,-500.0,0.00016438,2]
[342218234,1731595836872,-500.0,0.00016438,2]
[342218235,1731595836882,-500.0,0.00016438,2]
[342218236,1731595836892,-541.69,0.00016438,2]
[342218237,1731595836901,-500.0,0.00016438,2]
[342218238,1731595836911,-500.0,0.00016438,2]
[342218239,1731595836920,-500.0,0.00016438,2]
[342218240,1731595837146,-500.0,0.00016438,2]
[342218241,1731595837160,-500.0,0.00016438,2]
[342218242,1731595837170,-500.0,0.00016438,2]
[342218243,1731595837179,-151.31023586,0.00016438,2]
[342218244,1731595837188,-378.81593139,0.00016438,2]
[342218245,1731595837198,-628.28,0.00016438,2]
[342218246,1731595837207,-500.0,0.00016438,2]
[342218247,1731595837217,-500.0,0.00016438,2]
[342218248,1731595837226,-622.52,0.00016438,2]
[342218249,1731595837236,-500.0,0.00016438,2]
[342218250,1731595837245,-500.0,0.00016438,2]
[342218251,1731595837255,-500.0,0.00016438,2]
[342218252,1731595837264,-151.0,0.00016438,2]
[342218253,1731595837273,-500.0,0.00016438,2]
[342218254,1731595837282,-646.04,0.00016438,2]
[342218255,1731595837292,-681.07,0.00016438,2]
[342218256,1731595837301,-500.0,0.00016438,2]
[342218257,1731595837310,-500.0,0.00016438,2]
[342218258,1731595837319,-500.0,0.00016438,2]
[342218259,1731595837338,-641.36,0.00016438,2]
[342218260,1731595837347,-500.0,0.00016438,2]
[342218261,1731595837357,-500.0,0.00016438,2]
[342218262,1731595837367,-691.43,0.00016438,2]
[342218263,1731595837378,-538.83429899,0.00016438,2]
[342218264,1731595837389,-647.8,0.00016438,2]
[342218265,1731595837399,-755.66,0.00016438,2]
[342218266,1731595837409,-501.49,0.00016438,2]
[342218267,1731595837419,-511.75183912,0.00016438,2]
[342218268,1731595837428,-500.0,0.00016438,2]
[342218269,1731595837439,-500.0,0.00016438,2]
[342218270,1731595837450,-905.77,0.00016438,2]
[342218271,1731595837459,-500.0,0.00016438,2]
[342218272,1731595837468,-500.0,0.00016438,2]
[342218273,1731595837477,-500.0,0.00016438,2]
[342218274,1731595837487,-151.0,0.00016438,2]
[342218275,1731595837497,-500.0,0.00016438,2]
[342218276,1731595837506,-1145.47,0.00016438,2]
[342218277,1731595837515,-500.0,0.00016438,2]
[342218278,1731595837525,-500.0,0.00016438,2]
[342218279,1731595837535,-500.0,0.00016438,2]
[342218280,1731595837544,-500.0,0.00016438,2]
[342218281,1731595837554,-168.75788187,0.00016438,2]
[342218282,1731595837563,-500.0,0.00016438,2]
[342218283,1731595837579,-500.0,0.00016438,2]
[342218284,1731595837590,-500.0,0.00016438,2]
[342218285,1731595837600,-500.0,0.00016438,2]
[342218286,1731595837610,-843.03,0.00016438,2]
[342218288,1731595837624,-500.0,0.00016438,2]
[342218289,1731595837634,-500.0,0.00016438,2]
[342218290,1731595837643,-541.75,0.00016438,2]
[342218291,1731595837654,-500.0,0.00016438,2]
[342218292,1731595837664,-500.0,0.00016438,2]
[342218293,1731595837674,-500.0,0.00016438,2]
[342218294,1731595837684,-500.0,0.00016438,2]
[342218295,1731595837693,-537.86925775,0.00016438,2]
[342218296,1731595837704,-594.26,0.00016438,2]
[342218297,1731595837713,-500.0,0.00016438,2]
[342218298,1731595837723,-500.0,0.00016438,2]
[342218299,1731595837734,-533.4,0.00016438,2]
[342218301,1731595837744,-500.0,0.00016438,2]
[342218303,1731595837754,-500.0,0.00016438,2]
[342218304,1731595837764,-458.4298966,0.00016438,2]
[342218306,1731595837774,-582.28,0.00016438,2]
[342218308,1731595837783,-500.0,0.00016438,2]
[342218309,1731595837793,-500.0,0.00016438,2]
[342218311,1731595837802,-151.0,0.00016438,2]
[342218313,1731595837811,-151.0,0.00016438,2]
[342218314,1731595837823,-151.0,0.00016438,2]
[342218315,1731595837834,-151.0,0.00016438,2]
[342218317,1731595837843,-151.0,0.00016438,2]
[342218319,1731595837853,-151.0,0.00016438,2]
[342218320,1731595837862,-500.0,0.00016438,2]
[342218321,1731595837872,-151.0,0.00016438,2]
[342218322,1731595837881,-246.37421,0.00016438,2]
[342218324,1731595837891,-500.0,0.00016438,2]
[342218325,1731595837900,-507.92733499,0.00016438,2]
[342218326,1731595837909,-534.51506085,0.00016438,2]
[342218327,1731595837919,-500.0,0.00016438,2]
[342218328,1731595837928,-500.0,0.00016438,2]
[342218329,1731595837938,-185.6113636,0.00016438,2]
[342218330,1731595837947,-500.0,0.00016438,2]
[342218331,1731595837957,-553.2873565,0.00016438,2]
[342218332,1731595837967,-500.0,0.00016438,2]
[342218333,1731595837978,-579.58734664,0.00016438,2]
[342218334,1731595837987,-716.7,0.00016438,2]
[342218335,1731595837997,-509.07716717,0.00016438,2]
[342218336,1731595838006,-500.0,0.00016438,2]
[342218337,1731595838019,-500.0,0.00016438,2]
[342218338,1731595838029,-500.0,0.00016438,2]
[342218339,1731595838038,-500.0,0.00016438,2]
[342218340,1731595838048,-500.0,0.00016438,2]
[342218341,1731595838059,-2015.3,0.00016438,2]
[342218342,1731595838068,-500.0,0.00016438,2]
[342218343,1731595838081,-753.79,0.00016438,2]
[342218344,1731595838091,-746.97,0.00016438,2]
[342218345,1731595838104,-566.06580133,0.00016438,2]
[342218346,1731595838114,-512.37100761,0.00016438,2]
[342218347,1731595838124,-500.0,0.00016438,2]
[342218348,1731595838133,-500.0,0.00016438,2]
[342218349,1731595838142,-500.0,0.00016438,2]
[342218350,1731595838151,-638.18,0.00016438,2]
[342218351,1731595838160,-500.0,0.00016438,2]
[342218352,1731595838170,-500.0,0.00016438,2]
[342218353,1731595838179,-708.71,0.00016438,2]
[342218354,1731595838189,-151.0,0.00016438,2]
[342218355,1731595838199,-151.0,0.00016438,2]
[342218356,1731595838208,-260.215227,0.00016438,2]
[342218357,1731595838218,-500.0,0.00016438,2]
[342218358,1731595838228,-895.0,0.00016438,2]
[342218359,1731595838237,-501.67279884,0.00016438,2]
[342218360,1731595838247,-500.0,0.00016438,2]
[342218361,1731595838256,-500.0,0.00016438,2]
[342218362,1731595838265,-511.12058777,0.00016438,2]
[342218363,1731595838274,-500.0,0.00016438,2]
[342218364,1731595838284,-500.0,0.00016438,2]
[342218365,1731595838293,-500.0,0.00016438,2]
[342218366,1731595838303,-161.33108599,0.00016438,2]
[342218367,1731595838312,-1138.79,0.00016438,2]
[342218368,1731595838324,-500.0,0.00016438,2]
[342218369,1731595838335,-151.0,0.00016438,2]
[342218370,1731595838344,-151.0,0.00016438,2]
[342218371,1731595838354,-500.0,0.00016438,2]
[342218372,1731595838364,-500.0,0.00016438,2]
[342218373,1731595838374,-153.063859,0.00016438,2]
[342218374,1731595838384,-508.26581014,0.00016438,2]
[342218375,1731595838393,-510.78410281,0.00016438,2]
[342218376,1731595838403,-500.0,0.00016438,2]
[342218377,1731595838413,-500.0,0.00016438,2]
[342218378,1731595838423,-519.35266355,0.00016438,2]
[342218379,1731595838432,-500.0,0.00016438,2]
[342218380,1731595838442,-151.0,0.00016438,2]
[342218381,1731595838452,-151.0,0.00016438,2]
[342218382,1731595838461,-151.0,0.00016438,2]
[342218383,1731595838471,-1401.03,0.00016438,2]
[342218384,1731595838481,-151.0,0.00016438,2]
[342218385,1731595838491,-754.37,0.00016438,2]
[342218386,1731595838502,-151.0,0.00016438,2]
[342218387,1731595838511,-151.0,0.00016438,2]
[342218388,1731595838521,-151.0,0.00016438,2]
[342218389,1731595838530,-528.68323612,0.00016438,2]
[342218390,1731595838540,-151.0,0.00016438,2]
[342218391,1731595838549,-614.0537829,0.00016438,2]
[342218392,1731595838559,-500.0,0.00016438,2]
[342218393,1731595838569,-500.0,0.00016438,2]
[342218394,1731595838584,-1257.03,0.00016438,2]
[342218395,1731595838594,-500.0,0.00016438,2]
[342218396,1731595838604,-500.0,0.00016438,2]
[342218397,1731595838614,-500.0,0.00016438,2]
[342218399,1731595838623,-500.0,0.00016438,2]
[342218400,1731595838632,-500.0,0.00016438,2]
[342218401,1731595838642,-500.0,0.00016438,2]
[342218402,1731595838653,-500.0,0.00016438,2]
[342218403,1731595838663,-500.0,0.00016438,2]
[342218404,1731595838673,-500.0,0.00016438,2]
[342218406,1731595838683,-500.0,0.00016438,2]
[342218407,1731595838693,-500.0,0.00016438,2]
[342218408,1731595838705,-500.0,0.00016438,2]
[342218409,1731595838715,-500.0,0.00016438,2]
[342218410,1731595838725,-500.0,0.00016438,2]
[342218412,1731595838734,-500.0,0.00016438,2]
[342218414,1731595838744,-500.0,0.00016438,2]
[342218416,1731595838753,-13677.72,0.00016438,2]
[342218417,1731595838762,-500.0,0.00016438,2]
[342218419,1731595838771,-500.0,0.00016438,2]
[342218421,1731595838781,-500.0,0.00016438,2]
[342218423,1731595838791,-449.34581962,0.00016438,2]
[342218424,1731595838800,-525.84525482,0.00016438,2]
[342218426,1731595838809,-500.0,0.00016438,2]
[342218428,1731595838819,-151.0,0.00016438,2]
[342218429,1731595838832,-151.0,0.00016438,2]
[342218430,1731595838841,-500.0,0.00016438,2]
[342218432,1731595838850,-151.0,0.00016438,2]
[342218434,1731595838860,-500.0,0.00016438,2]
[342218435,1731595838869,-500.0,0.00016438,2]
[342218437,1731595838878,-151.0,0.00016438,2]
[342218439,1731595838887,-500.0,0.00016438,2]
[342218441,1731595838897,-658.16,0.00016438,2]
[342218442,1731595838908,-1743.89,0.00016438,2]
[342218444,1731595838917,-500.0,0.00016438,2]
[342218445,1731595838926,-500.0,0.00016438,2]
[342218446,1731595838936,-675.85,0.00016438,2]
[342218447,1731595838946,-500.0,0.00016438,2]
[342218448,1731595838955,-517.16889602,0.00016438,2]
[342218449,1731595838964,-500.0,0.00016438,2]
[342218450,1731595838974,-500.0,0.00016438,2]
[342218451,1731595838983,-500.0,0.00016438,2]
[342218452,1731595838993,-500.0,0.00016438,2]
[342218453,1731595839002,-1047.87,0.00016438,2]
[342218454,1731595839012,-500.0,0.00016438,2]
[342218455,1731595839024,-525.9035348,0.00016438,2]
[342218456,1731595839034,-500.0,0.00016438,2]